fUSD/lending_fUSD_20250720
["ID","MTS","AMOUNT","RATE_DAILY","PERIOD"]
[373418621,1752995432275,-803.037369,0.00017426,2]
[373418622,1752995432284,-89.93518688,0.00017482,2]
[373418623,1752995432297,-1736.56481312,0.00017482,2]
[373418624,1752995432306,-473.0,0.000175,2]
[373418625,1752995432316,-500.0,0.000175,6]
[373418626,1752995432326,-228.52662693,0.00017506,2]
[373418627,1752995432337,-645.21446936,0.00017506,2]
[373418628,1752995432347,-1500.0,0.0001752,2]
[373418629,1752995432356,-168.0,0.00017594,2]
[373418630,1752995432366,-44.98553064,0.000176,2]
[373418635,1752995432443,-558.63190097,0.000176,2]
[373418636,1752995432455,-6539.23856839,0.000176,2]
[373418637,1752995432464,-231.28369723,0.000176,2]
[373418638,1752995432474,-800.0,0.000176,6]
[373418639,1752995432483,-199.94011164,0.00017601,2]
[373418640,1752995432492,-252.85412746,0.00017671,2]
[373418641,1752995432502,-346.92554585,0.00017671,2]
[373418642,1752995432511,-600.0,0.00017671,2]
[373418643,1752995432521,-151.0,0.00017671,2]
[373418644,1752995432531,-162.09665772,0.00017671,2]
[373418645,1752995432540,-155.59910309,0.00017671,2]
[373418646,1752995432549,-500.0,0.00017671,2]
[373418647,1752995432559,-151.0,0.00017671,2]
[373418648,1752995432568,-500.0,0.00017671,2]
[373418649,1752995432578,-171.13575339,0.00017671,2]
[373418650,1752995432588,-500.0,0.00017671,2]
[373418651,1752995432597,-187.80982168,0.00017671,2]
[373418652,1752995432607,-6249.93718481,0.00017682,2]
[373418653,1752995432619,-321.1542531,0.00017682,2]
[373418654,1752995432629,-17827.2968,0.00017682,2]
[373418655,1752995432645,-1869.14500222,0.00017682,2]
[373418656,1752995432655,-784.96520206,0.00017682,2]
[373418657,1752995432664,-169.41822243,0.00017682,2]
[373418658,1752995432674,-369.07385921,0.00017682,2]
[373418659,1752995432685,-3799.61572072,0.00017682,2]
[373418660,1752995432698,-850.0,0.00017682,2]
[373418661,1752995432712,-372.7038166,0.00017682,2]
[373418662,1752995432721,-191.90488338,0.00017682,3]
[373418663,1752995432731,-311.14630592,0.00017682,2]
[373418664,1752995432740,-1229.28807723,0.000177,2]
[373418665,1752995432753,-753.65636611,0.000177,2]
[373418666,1752995432770,-599.74118276,0.000177,2]
[373418667,1752995432780,-1100.0,0.000177,6]
[373418668,1752995432789,-3420.0,0.00017753,2]
[373418669,1752995432799,-1011.33118081,0.00017762,2]
[373418670,1752995432808,-500.0,0.00017764,2]
[373418671,1752995432817,-250.0,0.00017771,2]
[373418672,1752995432826,-2500.0,0.00017771,2]
[373418673,1752995432836,-928.86743594,0.00017771,2]
[373418674,1752995432848,-71.13256406,0.00017771,2]
[373418675,1752995432858,-250.0,0.00017771,2]
[373418676,1752995432867,-51.08712875,0.00017771,2]
[373418677,1752995437915,-431.80999992,0.00017682,2]
[373418678,1752995437955,-1305.62540879,0.00017682,2]
[373418679,1752995438864,-710.89172499,0.00017682,2]
[373418680,1752995438896,-7231.66264379,0.00017682,2]
[373418681,1752995438905,-2448.91287125,0.00017771,2]
[373418682,1752995438915,-1000.0,0.00017771,2]
[373418684,1752995438924,-270.18982553,0.00017772,2]
[373418685,1752995438934,-270.18982553,0.00017772,2]
[373418687,1752995438944,-270.18982553,0.00017772,2]
[373418690,1752995438958,-503.43511073,0.00017773,2]
[373418692,1752995438969,-244.61895583,0.00017773,2]
[373418693,1752995438979,-500.0,0.00017773,2]
[373418695,1752995438988,-500.0,0.00017773,2]
[373418697,1752995438998,-500.0,0.00017773,2]
[373418699,1752995439008,-500.0,0.00017773,2]
[373418702,1752995439018,-500.78498936,0.00017773,2]
[373418703,1752995439028,-500.0,0.00017773,2]
[373418705,1752995439037,-544.75527993,0.00017773,2]
[373418707,1752995439047,-500.0,0.00017773,2]
[373418709,1752995439056,-500.0,0.00017773,2]
[373418711,1752995439066,-500.0,0.00017773,2]
[373418713,1752995439075,-500.0,0.00017773,2]
[373418715,1752995439085,-500.0,0.00017781,2]
[373418717,1752995439094,-214.59127087,0.00017781,2]
[373418719,1752995439103,-500.0,0.00017781,2]
[373418721,1752995439113,-380.80132269,0.00017781,2]
[373418723,1752995439123,-353.49702903,0.00017781,2]
[373418724,1752995439132,-20112.0,0.00017781,2]
[373418726,1752995439141,-150.0,0.00017781,2]
[373418728,1752995439150,-4326.0,0.00017781,2]
[373418730,1752995439158,-500.0,0.00017781,2]
[373418731,1752995439166,-251.65873712,0.00017781,2]
[373418733,1752995439175,-500.0,0.00017781,2]
[373418735,1752995439184,-500.0,0.00017781,2]
[373418737,1752995439193,-500.0,0.00017781,2]
[373418739,1752995439203,-500.0,0.00017781,2]
[373418741,1752995439212,-1058.0,0.00017781,2]
[373418743,1752995439221,-2241.0,0.00017781,2]
[373418745,1752995439230,-252.90138392,0.00017781,2]
[373418747,1752995439239,-500.0,0.00017781,2]
[373418749,1752995439248,-150.0,0.00017781,2]
[373418751,1752995439258,-150.0,0.00017781,2]
[373418753,1752995439267,-150.0,0.00017781,2]
[373418755,1752995439276,-150.0,0.00017781,2]
[373418756,1752995439285,-500.0,0.00017781,2]
[373418759,1752995439296,-223.10023967,0.00017781,2]
[373418760,1752995439304,-300.0,0.00017781,2]
[373418762,1752995439314,-8336.65370379,0.00017782,2]
[373418841,1752995440103,-150.0,0.00017781,2]
[373418844,1752995440113,-150.0,0.00017781,2]
[373418845,1752995440122,-81.28266465,0.00017782,2]
[373419036,1752995442123,-1156.0,0.00017781,2]
[373419038,1752995442133,-232825.25354632,0.00017782,2]
[373419040,1752995442144,-11347.876955,0.00017782,2]
[373419128,1752995442925,-975.31732,0.00017782,2]
[373419139,1752995443019,-3242.5994525,0.00017782,2]
[373419141,1752995443030,-2998.55619919,0.00017782,2]
[373419143,1752995443046,-932.54814982,0.00017782,2]
[373419159,1752995443234,-479.84272438,0.00017782,2]
[373419418,1752995446060,-501.83458306,0.00017782,2]
[373419420,1752995446071,-396.40731964,0.00017782,2]
[373419422,1752995446083,-17872.89379286,0.00017782,2]
[373419425,1752995446095,-302.2518415,0.00017782,2]
[373419427,1752995446107,-6559.15692876,0.00017782,2]
[373419429,1752995446119,-13698.73981095,0.00017782,2]
[373419432,1752995446131,-3916.98819888,0.00017782,2]
[373419434,1752995446143,-1438.43008209,0.00017782,2]
[373419458,1752995446376,-322.8916,0.00017782,2]
[373419462,1752995446405,-2743.5631053,0.00017782,2]
[373420004,1752995604542,240.96,0.00013699,2]
[373420005,1752995853574,315.15927901,0.000211,28]
[373420006,1752995948065,500.0,7.945e-05,2]
[373420007,1752995948089,9500.0,7.945e-05,2]
[373420010,1752996497862,172.1453761,0.00015,2]
[373420011,1752996536821,209.50041626,0.00015903,2]
[373420016,1752996632093,-230.0,0.00016002,2]
[373420017,1752996632103,-1200.0,0.00016002,2]
[373420018,1752996632112,-150.0,0.00016003,2]
[373420019,1752996632122,-150.0,0.00016003,2]
[373420020,1752996632131,-150.76412834,0.00016003,2]
[373420021,1752996632141,-150.0,0.00016003,2]
[373420022,1752996632150,-4.12593546,0.00016003,2]
[373420023,1752996632205,-146.45286917,0.00016003,2]
[373420024,1752996632214,-157.06645388,0.00016003,2]
[373420025,1752996632223,-150.0,0.00016003,2]
[373420026,1752996632233,-156.00413649,0.00016003,2]
[373420027,1752996632243,-150.55971421,0.00016003,2]
[373420028,1752996632252,-150.75665953,0.00016003,2]
[373420029,1752996632262,-151.86377248,0.00016003,2]
[373420030,1752996632271,-153.2213734,0.00016003,2]
[373420031,1752996632280,-151.02441542,0.00016003,2]
[373420032,1752996632290,-151.22285692,0.00016003,2]
[373420033,1752996632300,-151.25998911,0.00016003,2]
[373420034,1752996632310,-154.8744311,0.00016003,2]
[373420035,1752996632320,-500.0,0.00016056,2]
[373420036,1752996632330,-2751.0,0.00016284,2]
[373420037,1752996632339,-200.0,0.00016287,2]
[373420038,1752996632349,-300.65,0.00016295,2]
[373420039,1752996632359,-272.15,0.00016297,2]
[373420040,1752996632370,-276.17,0.00016343,2]
[373420041,1752996632380,-500.0,0.00016402,2]
[373420042,1752996632389,-858.79,0.00016427,2]
[373420043,1752996632401,-550.0,0.00016433,2]
[373420044,1752996632412,-20756.12,0.00016434,2]
[373420045,1752996632422,-666.0,0.00016438,2]
[373420046,1752996632431,-4555.0,0.0001644,2]
[373420047,1752996632441,-1000.0,0.00016463,2]
[373420048,1752996632450,-3575.71,0.00016578,2]
[373420049,1752996632460,-903.7,0.00016631,2]
[373420050,1752996632469,-253.21,0.00016633,2]
[373420051,1752996632478,-164.76,0.00016633,2]
[373420052,1752996632488,-200.0,0.00016674,2]
[373420054,1752996632497,-209.50041626,0.00016724,2]
[373420055,1752996632507,-150.0,0.00016775,2]
[373420056,1752996632517,-500.0,0.00016824,2]
[373420059,1752996632526,-500.0,0.00016824,2]
[373420062,1752996632535,-500.0,0.00016824,2]
[373420065,1752996632544,-500.0,0.00016824,2]
[373420067,1752996632552,-500.0,0.00016824,2]
[373420068,1752996632561,-500.0,0.00016824,2]
[373420070,1752996632570,-151.0,0.00016824,2]
[373420072,1752996632580,-500.0,0.00016824,2]
[373420074,1752996632589,-389.54213016,0.00016824,2]
[373420076,1752996632597,-151.0,0.00016824,2]
[373420078,1752996632606,-151.0,0.00016824,2]
[373420080,1752996632615,-151.0,0.00016824,2]
[373420082,1752996632624,-151.0,0.00016824,2]
[373420084,1752996632634,-151.0,0.00016824,2]
[373420086,1752996632643,-151.0,0.00016824,2]
[373420088,1752996632653,-151.0,0.00016824,2]
[373420090,1752996632662,-500.0,0.00016824,2]
[373420092,1752996632671,-151.0,0.00016824,2]
[373420094,1752996632680,-500.0,0.00016824,2]
[373420096,1752996632689,-151.0,0.00016824,2]
[373420098,1752996632698,-500.0,0.00016824,2]
[373420100,1752996632708,-151.0,0.00016824,2]
[373420103,1752996632717,-500.0,0.00016824,2]
[373420106,1752996632726,-151.0,0.00016824,2]
[373420109,1752996632735,-500.0,0.00016824,2]
[373420112,1752996632745,-151.0,0.00016824,2]
[373420115,1752996632754,-55.51840159,0.00016824,2]
[373420120,1752996632773,-444.48159841,0.00016824,2]
[373420123,1752996632782,-151.0,0.00016824,2]
[373420126,1752996632792,-500.0,0.00016824,2]
[373420129,1752996632802,-151.0,0.00016824,2]
[373420132,1752996632811,-500.0,0.00016824,2]
[373420135,1752996632820,-151.0,0.00016824,2]
[373420138,1752996632830,-500.0,0.00016824,2]
[373420141,1752996632839,-151.0,0.00016824,2]
[373420144,1752996632848,-500.0,0.00016824,2]
[373420147,1752996632857,-500.0,0.00016824,2]
[373420150,1752996632866,-500.0,0.00016824,2]
[373420152,1752996632875,-500.0,0.00016824,2]
[373420154,1752996632885,-500.0,0.00016824,2]
[373420156,1752996632894,-500.0,0.00016824,2]
[373420157,1752996632903,-154.16647999,0.00016824,2]
[373420159,1752996632912,-500.0,0.00016824,2]
[373420161,1752996632922,-500.0,0.00016824,2]
[373420163,1752996632931,-278.00152264,0.00016824,2]
[373420166,1752996632942,-221.99847736,0.00016824,2]
[373420168,1752996632952,-500.0,0.00016824,2]
[373420170,1752996632961,-500.0,0.00016824,2]
[373420172,1752996632970,-3628.75,0.00016834,2]
[373420174,1752996632979,-168.0,0.00017174,2]
[373420176,1752996632988,-167.71,0.00017334,2]
[373420178,1752996632997,-779.5011188,0.0001736,2]
[373420180,1752996633006,-669.197808,0.00017426,2]
[373420182,1752996633015,-253.21,0.00017465,2]
[373420184,1752996633024,-166.34,0.00017468,7]
[373420186,1752996633034,-1043.72,0.00017482,2]
[373420188,1752996633043,-478.0,0.000175,2]
[373420190,1752996633055,-500.0,0.00017512,2]
[373420192,1752996633066,-500.0,0.0001752,2]
[373420194,1752996633075,-1300.0,0.0001752,2]
[373420196,1752996633084,-1400.0,0.0001752,2]
[373420198,1752996633096,-168.0,0.00017534,2]
[373420200,1752996633105,-935.0,0.0001755,2]
[373420202,1752996633115,-1680.0,0.00017583,2]
[373420204,1752996633124,-600.0,0.000176,2]
[373420206,1752996633134,-231.28369723,0.000176,2]
[373420208,1752996633144,-256.48244547,0.000176,2]
[373420209,1752996633154,-325.68686684,0.000176,2]
[373420211,1752996633164,-7142.856,0.000176,2]
[373420213,1752996633173,-500.0,0.000176,2]
[373420215,1752996633183,-500.0,0.000176,2]
[373420218,1752996633192,-500.0,0.000176,2]
[373420219,1752996633202,-500.0,0.000176,2]
[373420221,1752996633212,-500.0,0.000176,2]
[373420223,1752996633221,-500.0,0.000176,2]
[373420225,1752996633231,-500.0,0.000176,2]
[373420227,1752996633240,-611.44626663,0.000176,2]
[373420229,1752996633250,-346.92554585,0.000176,2]
[373420231,1752996633260,-2880.75271,0.000176,2]
[373420233,1752996633270,-250.0,0.00017602,2]
[373420235,1752996633280,-1000.0,0.00017602,2]
[373420238,1752996633291,-300.0,0.00017602,2]
[373420239,1752996633300,-1000.0,0.00017602,2]
[373420241,1752996633310,-1000.0,0.00017603,2]
[373420243,1752996633319,-249.49490886,0.00017633,2]
[373420245,1752996633330,-200.0,0.0001764,2]
[373420248,1752996633342,-2360.71802121,0.00017681,2]
[373420250,1752996633352,-1813.69193449,0.00017681,2]
[373420252,1752996633362,-166.91258773,0.00017681,2]
[373420254,1752996633371,-2360.71802121,0.00017681,2]
[373420255,1752996633380,-1813.69193443,0.00017681,2]
[373420258,1752996633390,-2360.71802121,0.00017681,2]
[373420260,1752996633403,-1813.69193443,0.00017681,2]
[373420261,1752996633415,-2311.70461863,0.00017681,2]
[373420264,1752996633428,-49.01340258,0.00017681,2]
[373420266,1752996633438,-1813.69193443,0.00017681,2]
[373420268,1752996633449,-2360.71802121,0.00017681,2]
[373420270,1752996633459,-1813.69193443,0.00017681,2]
[373420272,1752996633468,-2360.71802121,0.00017682,2]
[373420274,1752996633478,-85.18571631,0.00017682,2]
[373420284,1752996633560,-1728.50621812,0.00017682,2]
[373420286,1752996633569,-2360.71802121,0.00017682,2]
[373420288,1752996633579,-1813.69193443,0.00017682,2]
[373420290,1752996633588,-519.47366561,0.00017682,2]
[373420295,1752996633627,-1841.2443556,0.00017682,2]
[373420297,1752996633636,-1813.69193443,0.00017682,2]
[373420299,1752996633646,-2360.71802121,0.00017682,2]
[373420300,1752996633655,-1813.69193443,0.00017682,2]
[373420303,1752996633665,-155.76146033,0.00017682,2]
[373420305,1752996633674,-2360.71802121,0.00017682,2]
[373420306,1752996633684,-1813.69193443,0.00017682,2]
[373420309,1752996633694,-856.3195379,0.00017682,2]
[373420311,1752996633703,-8066.6581479,0.00017682,2]
[373420312,1752996633712,-207.43087062,0.00017682,2]
[373420314,1752996633722,-191.90488337,0.00017682,3]
[373420316,1752996633731,-233.02765039,0.0001769,2]
[373420318,1752996633740,-1000.0,0.00017693,2]
[373420320,1752996633750,-1000.0,0.00017693,2]
[373420322,1752996633759,-1000.0,0.00017693,2]
[373420324,1752996633768,-1000.0,0.00017693,2]
[373420326,1752996633778,-1000.0,0.00017693,2]
[373420328,1752996633787,-1000.0,0.00017693,2]
[373420330,1752996633797,-1000.0,0.00017693,2]
[373420331,1752996633806,-1000.0,0.00017693,2]
[373420332,1752996633816,-1000.0,0.00017693,2]
[373420333,1752996633826,-1000.0,0.00017693,2]
[373420334,1752996633835,-1000.0,0.00017693,2]
[373420335,1752996633844,-1000.0,0.00017693,2]
[373420336,1752996633854,-1000.0,0.00017693,2]
[373420337,1752996633863,-1000.0,0.00017693,2]
[373420338,1752996633873,-1000.0,0.00017693,2]
[373420339,1752996633882,-1000.0,0.00017693,2]
[373420340,1752996633892,-1000.0,0.00017693,2]
[373420341,1752996633902,-1000.0,0.00017693,2]
[373420342,1752996633911,-1000.0,0.00017693,2]
[373420343,1752996633922,-1000.0,0.00017693,2]
[373420344,1752996633931,-1000.0,0.00017693,2]
[373420345,1752996633941,-205.5694,0.00017693,2]
[373420346,1752996633950,-1000.0,0.00017693,2]
[373420347,1752996633959,-1000.0,0.00017693,2]
[373420348,1752996633969,-1000.0,0.00017693,2]
[373420349,1752996633978,-1000.0,0.00017693,2]
[373420350,1752996633987,-1000.0,0.00017693,2]
[373420351,1752996633996,-1000.0,0.00017693,2]
[373420352,1752996634005,-1000.0,0.00017693,2]
[373420353,1752996634015,-1000.0,0.00017693,2]
[373420354,1752996634024,-1000.0,0.00017693,2]
[373420355,1752996634033,-1000.0,0.00017693,2]
[373420356,1752996634042,-1000.0,0.00017693,2]
[373420357,1752996634052,-1000.0,0.00017693,2]
[373420358,1752996634063,-1000.0,0.00017693,2]
[373420359,1752996634072,-1000.0,0.00017693,2]
[373420360,1752996634082,-1000.0,0.00017693,2]
[373420361,1752996634091,-1000.0,0.00017693,2]
[373420362,1752996634100,-1000.0,0.00017693,2]
[373420363,1752996634110,-1000.0,0.00017693,2]
[373420364,1752996634120,-1000.0,0.00017693,2]
[373420365,1752996634129,-1000.0,0.00017693,2]
[373420366,1752996634139,-1000.0,0.00017693,2]
[373420367,1752996634149,-1000.0,0.00017693,2]
[373420368,1752996634158,-1000.0,0.00017693,2]
[373420369,1752996634168,-1000.0,0.00017693,2]
[373420370,1752996634177,-1000.0,0.00017693,2]
[373420371,1752996634187,-1000.0,0.00017693,2]
[373420372,1752996634197,-1000.0,0.00017693,2]
[373420373,1752996634207,-1000.0,0.00017693,2]
[373420374,1752996634217,-1000.0,0.00017693,2]
[373420375,1752996634227,-1000.0,0.00017693,2]
[373420376,1752996634237,-1000.0,0.00017693,2]
[373420377,1752996634246,-1000.0,0.00017693,2]
[373420378,1752996634256,-1000.0,0.00017693,2]
[373420379,1752996634266,-1000.0,0.00017693,2]
[373420380,1752996634276,-1000.0,0.00017693,2]
[373420381,1752996634286,-1000.0,0.00017693,2]
[373420382,1752996634297,-1000.0,0.00017693,2]
[373420383,1752996634307,-1000.0,0.00017693,2]
[373420384,1752996634316,-1000.0,0.00017693,2]
[373420385,1752996634326,-1000.0,0.00017693,2]
[373420386,1752996634336,-1000.0,0.00017693,2]
[373420387,1752996634346,-1000.0,0.00017693,2]
[373420388,1752996634355,-1000.0,0.00017693,2]
[373420389,1752996634366,-1000.0,0.00017693,2]
[373420390,1752996634375,-1000.0,0.00017693,2]
[373420391,1752996634385,-1000.0,0.00017693,2]
[373420392,1752996634396,-1000.0,0.00017693,2]
[373420393,1752996634408,-1000.0,0.00017693,2]
[373420394,1752996634418,-1000.0,0.00017693,2]
[373420395,1752996634428,-1000.0,0.00017693,2]
[373420396,1752996634437,-1000.0,0.00017693,2]
[373420397,1752996634446,-1000.0,0.00017693,2]
[373420398,1752996634456,-1000.0,0.00017693,2]
[373420399,1752996634466,-1000.0,0.00017693,2]
[373420400,1752996634476,-1000.0,0.00017693,2]
[373420401,1752996634485,-1000.0,0.00017693,2]
[373420402,1752996634495,-1000.0,0.00017693,2]
[373420403,1752996634504,-1000.0,0.00017693,2]
[373420404,1752996634514,-1000.0,0.00017693,2]
[373420405,1752996634524,-1000.0,0.00017693,2]
[373420406,1752996634533,-1000.0,0.00017693,2]
[373420407,1752996634543,-1000.0,0.00017693,2]
[373420408,1752996634553,-1000.0,0.00017693,2]
[373420409,1752996634562,-1000.0,0.00017693,2]
[373420410,1752996634571,-1000.0,0.00017693,2]
[373420411,1752996634582,-1000.0,0.00017693,2]
[373420412,1752996634591,-1000.0,0.00017693,2]
[373420413,1752996634601,-1000.0,0.00017693,2]
[373420414,1752996634610,-1000.0,0.00017693,2]
[373420415,1752996634619,-1000.0,0.00017693,2]
[373420416,1752996634629,-1000.0,0.00017693,2]
[373420417,1752996634638,-1000.0,0.00017693,2]
[373420418,1752996634648,-1000.0,0.00017693,2]
[373420419,1752996634657,-1000.0,0.00017693,2]
[373420420,1752996634667,-1000.0,0.00017693,2]
[373420421,1752996634677,-1000.0,0.00017693,2]
[373420422,1752996634686,-1000.0,0.00017693,2]
[373420423,1752996634696,-1000.0,0.00017693,2]
[373420424,1752996634705,-1000.0,0.00017693,2]
[373420425,1752996634715,-1000.0,0.00017693,2]
[373420426,1752996634724,-819.2777,0.00017693,2]
[373420427,1752996634734,-888.11,0.0001772,2]
[373420428,1752996634744,-210.92675212,0.00017728,2]
[373420429,1752996634754,-186.27,0.00017754,2]
[373420430,1752996634763,-2873.69970924,0.00017761,2]
[373420431,1752996634772,-392.73081578,0.00017764,2]
[373420432,1752996634781,-500.0,0.00017773,2]
[373420433,1752996634791,-125.86374093,0.00017773,2]
[373420434,1752996634805,-374.13625907,0.00017773,2]
[373420435,1752996634814,-500.0,0.00017773,2]
[373420436,1752996634823,-500.0,0.00017773,2]
[373420437,1752996634832,-275.39048574,0.00017773,2]
[373420438,1752996634842,-500.0,0.00017773,2]
[373420439,1752996634851,-168.12247072,0.00017773,2]
[373420440,1752996634860,-144.02032881,0.00017773,2]
[373420441,1752996634871,-355.97967119,0.00017773,2]
[373420442,1752996634880,-500.0,0.00017773,2]
[373420443,1752996634890,-2714.32032381,0.00017776,2]
[373420444,1752996634901,-1117.99723049,0.00017776,2]
[373420445,1752996634912,-375.3611002,0.00017776,2]
[373420449,1752996638205,-2136.0635353,0.00017776,2]
[373420450,1752996638215,-834.58311723,0.0001778,2]
[373420451,1752996638734,-552.42745945,0.0001778,2]
[373420452,1752996638828,-612.98942332,0.0001778,2]
[373420453,1752996638838,-13868.10987486,0.0001778,2]
[373420454,1752996638962,-43752.75246009,0.0001778,2]
[373420621,1752996640687,-938.72520473,0.0001778,2]
[373420632,1752996640781,-4189.09829616,0.0001778,2]
[373420634,1752996640793,-10349.9483,0.0001778,2]
[373420636,1752996640805,-314.8202,0.0001778,2]
[373420638,1752996640818,-459.78,0.0001778,2]
[373420737,1752996643367,-162.86,0.00017172,2]
[373420738,1752996643377,-7915.20704253,0.0001778,2]
[373420739,1752996643389,-11912.45213769,0.0001778,2]
[373420740,1752996643400,-609.49665199,0.0001778,2]
[373420741,1752996643412,-534.07484204,0.0001778,2]
[373420742,1752996643421,-266.56092589,0.0001778,2]
[373420743,1752996643431,-150.21388961,0.0001778,2]
[373420744,1752996643440,-500.0,0.0001778,2]
[373420745,1752996643451,-266.05646371,0.0001778,2]
[373420746,1752996643460,-500.0,0.0001778,2]
[373420747,1752996643469,-273.33557644,0.00017781,2]
[373420748,1752996643480,-162.55659413,0.00017781,2]
[373420749,1752996643490,-159.6745717,0.00017781,2]
[373420750,1752996643500,-500.0,0.00017781,2]
[373420751,1752996643509,-500.0,0.00017781,2]
[373420752,1752996643518,-150.0,0.00017781,2]
[373420753,1752996643527,-150.0,0.00017781,2]
[373420754,1752996643536,-150.0,0.00017781,2]
[373420755,1752996643546,-500.0,0.00017781,2]
[373420756,1752996643556,-264.43548411,0.00017781,2]
[373420757,1752996643566,-150.0,0.00017781,2]
[373420758,1752996643575,-250.65961067,0.00017781,2]
[373420759,1752996643584,-1005.2587,0.00017781,2]
[373420760,1752996643594,-150.0,0.00017781,2]
[373420761,1752996643603,-150.0,0.00017781,2]
[373420763,1752996643612,-500.0,0.00017781,2]
[373420764,1752996643621,-500.0,0.00017781,2]
[373420765,1752996643631,-591.0,0.00017781,2]
[373420766,1752996643640,-150.0,0.00017781,2]
[373420767,1752996643649,-500.0,0.00017781,2]
[373420768,1752996643659,-200.0,0.00017781,2]
[373420769,1752996643668,-500.0,0.00017781,2]
[373420770,1752996643678,-2148.0,0.00017781,2]
[373420771,1752996643687,-253.42661089,0.00017781,2]
[373420772,1752996643696,-158.22535961,0.00017781,2]
[373420773,1752996643705,-150.0,0.00017781,2]
[373420774,1752996643715,-150.0,0.00017781,2]
[373420775,1752996643724,-1108.0,0.00017781,2]
[373420777,1752996643733,-150.0,0.00017781,2]
[373420779,1752996643743,-4145.0,0.00017781,2]
[373420780,1752996643752,-150.0,0.00017781,2]
[373420781,1752996643761,-500.0,0.00017781,2]
[373420782,1752996643770,-500.0,0.00017781,2]
[373420783,1752996643778,-500.0,0.00017781,2]
[373420784,1752996643787,-1013.0,0.00017781,2]
[373420785,1752996643796,-20715.42005028,0.00017781,2]
[373420786,1752996643808,-366.92,0.00017781,2]
[373420787,1752996643819,-7919.25193047,0.00017781,2]
[373420788,1752996643831,-2016.2064919,0.00017781,2]
[373420789,1752996643842,-2569.86999877,0.00017781,2]
[373420790,1752996643870,-5989.05766974,0.00017781,2]
[373420825,1752996646271,-58859.64245881,0.00017781,2]
[373420826,1752996646284,-79313.739483,0.00017781,2]
[373420827,1752996646362,-722.75484984,0.00017781,2]
[373420828,1752996646373,-470.61901209,0.00017781,2]
[373420829,1752996646394,-17334.35879003,0.00017781,2]
[373420855,1752996703436,250.0,0.00015,2]
[373420856,1752996789856,500.0,0.00015902,2]
[373420858,1752996809770,244.24,0.00013699,2]
[373420859,1752996975751,200.0,0.0002491,120]
[373420860,1752997001296,-162.86,0.00025759,120]
[373420861,1752997001374,-151.0,0.000265,120]
[373420862,1752997001447,-480.0,0.00027397,120]
[373420863,1752997001523,-225.0126113,0.00027397,120]
[373420864,1752997001587,-512.13881563,0.00027397,120]
[373420865,1752997001654,-530.86696747,0.00027397,120]
[373420866,1752997001722,-151.0,0.00028,120]
[373420867,1752997001791,-200.0,0.0002875,120]
[373420868,1752997001859,-500.0,0.00028767,120]
[373420869,1752997001929,-500.0,0.00028767,120]
[373420870,1752997001997,-460.441122,0.00028767,120]
[373420871,1752997002068,-153.0,0.000288,120]
[373420872,1752997002140,-756.6962128,0.000295,120]
[373420873,1752997002208,-151.0,0.000295,120]
[373420874,1752997002291,-817.6762932,0.0003,120]
[373420875,1752997002366,-1571.24690692,0.0003,120]
[373420876,1752997002434,-109221.66173398,0.0003,120]
[373420877,1752997002502,-210.86573235,0.0003,120]
[373420878,1752997018629,511.0,0.00015141,2]
[373420879,1752997049638,210.86573235,0.0003,120]
[373420880,1752997155645,500.0,0.00030136,120]
[373420881,1752997289472,-3665.74552385,0.00035191,60]
[373420882,1752997289557,-1519.34449025,0.00035191,90]
[373420883,1752997289635,-611.92495853,0.00035191,120]
[373420884,1752997289720,-2894.2049877,0.00035191,120]